fUST/lending_fUST_20251123
["ID","MTS","AMOUNT","RATE_DAILY","PERIOD"]
[394688066,1763888116887,-1029.43,0.00037861,120]
[394688067,1763888116912,-50000.0,0.00037861,30]
[394688068,1763888116937,-203.68073,0.00037861,120]
[394688069,1763888116961,-2000.0,0.00037861,120]
[394688070,1763888116985,-894.0,0.00037861,120]
[394688071,1763888117011,-590.29864227,0.00037861,120]
[394688072,1763888117037,-2675.82545954,0.00037861,120]
[394688073,1763888117062,-50000.0,0.00037861,30]
[394688074,1763888117086,-404.93515272,0.00037861,120]
[394688075,1763888117111,-153.07996882,0.00037861,20]
[394688076,1763888117138,-165.935073,0.00037861,31]
[394688077,1763888117162,-165.935073,0.00037861,31]
[394688078,1763888117188,-165.935073,0.00037861,31]
[394688079,1763888117213,-165.935073,0.00037861,31]
[394688080,1763888117237,-165.935073,0.00037861,31]
[394688081,1763888117263,-165.935073,0.00037861,31]
[394688082,1763888117292,-165.935073,0.00037861,31]
[394688083,1763888117325,-165.935073,0.00037861,31]
[394688084,1763888117352,-165.935073,0.00037861,31]
[394688085,1763888117380,-165.935073,0.00037861,31]
[394688086,1763888117407,-165.935073,0.00037861,31]
[394688087,1763888117434,-165.935073,0.00037861,31]
[394688088,1763888117459,-165.935073,0.00037861,31]
[394688089,1763888117483,-165.935073,0.00037861,31]
[394688090,1763888117507,-165.935073,0.00037861,31]
[394688091,1763888117532,-165.935073,0.00037861,31]
[394688092,1763888117557,-165.935073,0.00037861,31]
[394688093,1763888117582,-165.935073,0.00037861,31]
[394688094,1763888117606,-165.935073,0.00037861,31]
[394688095,1763888117630,-165.935077,0.00037861,31]
[394688096,1763888117655,-195499.05055171,0.00037861,20]
[394688097,1763888117681,-14449.0,0.00037861,120]
[394688098,1763888117707,-580.23003,0.00037861,120]
[394688099,1763888117732,-3198.63412206,0.00037861,120]
[394688100,1763888117757,-3019.51036983,0.00037861,20]
[394688101,1763888117781,-50000.0,0.00037861,120]
[394688102,1763888117806,-50000.0,0.00037861,120]
[394688103,1763888117831,-55622.57415466,0.00037861,120]
[394688104,1763888117855,-205.727929,0.00037861,40]
[394688105,1763888117878,-205.727929,0.00037861,40]
[394688106,1763888119808,564.57962818,0.00037861,20]
[394688109,1763888181890,477.74214918,0.00037861,20]
[394688111,1763888223367,5000.0,0.0002022,59]
[394688112,1763888231559,5000.0,0.0002022,59]
[394688115,1763888439236,150.57792692,9.086e-05,2]
[394688116,1763888447688,150.57792692,9.086e-05,2]
[394688117,1763888462668,150.57792692,9.086e-05,2]
[394688118,1763888470459,150.57792692,9.086e-05,2]
[394688119,1763888485370,150.57792692,9.086e-05,2]
[394688120,1763888493337,150.57792692,9.086e-05,2]
[394688121,1763888508037,150.57792692,9.086e-05,2]
[394688122,1763888516226,150.57792692,9.086e-05,2]
[394688123,1763888531122,150.57792692,9.086e-05,2]
[394688124,1763888539394,150.57792692,9.086e-05,2]
[394688125,1763888556019,150.57792692,9.086e-05,2]
[394688126,1763888562648,150.57792692,9.086e-05,2]
[394688127,1763888578145,150.57792692,9.086e-05,2]
[394688128,1763888586851,150.57792692,9.086e-05,2]
[394688129,1763888601000,150.57792692,9.086e-05,2]
[394688130,1763888608874,150.57792692,9.086e-05,2]
[394688131,1763888617184,150.57792692,9.086e-05,2]
[394688132,1763888641468,150.0,9.042e-05,2]
[394688133,1763888663166,150.0,9.042e-05,2]
[394688134,1763888684939,150.0,9.042e-05,2]
[394688135,1763888820418,150.0,9.042e-05,2]
[394688136,1763888828642,150.0,9.042e-05,2]
[394688137,1763888840571,1152.45530492,0.00020219,59]
[394688138,1763888843802,150.0,9.087e-05,2]
[394688139,1763888851541,150.0,9.087e-05,2]
[394688140,1763888866651,150.0,9.087e-05,2]
[394688141,1763888874573,150.0,9.087e-05,2]
[394688142,1763888889762,150.0,9.087e-05,2]
[394688143,1763888897539,150.0,9.087e-05,2]
[394688144,1763888902105,1275.8804043,9.046e-05,2]
[394688145,1763888914318,150.0,9.087e-05,2]
[394688146,1763888921275,150.0,9.087e-05,2]
[394688147,1763888936306,150.0,9.087e-05,2]
[394688148,1763888944409,150.0,9.087e-05,2]
[394688149,1763888959498,150.0,9.087e-05,2]
[394688150,1763888967268,150.0,9.087e-05,2]
[394688151,1763888984783,150.0,9.087e-05,2]
[394688152,1763888992587,150.0,9.087e-05,2]
[394688153,1763889008402,150.0,9.087e-05,2]
[394688154,1763889016138,150.0,9.087e-05,2]
[394688155,1763889031454,150.0,9.087e-05,2]
[394688177,1763889031885,-150.0,9.609e-05,2]
[394688178,1763889031895,-500.0,0.00010038,2]
[394688179,1763889031904,-300.0,0.00010038,2]
[394688180,1763889031915,-300.0,0.00010038,2]
[394688181,1763889031924,-1200.0,0.00010038,2]
[394688182,1763889031933,-300.0,0.00010038,2]
[394688183,1763889031942,-955.04028483,0.00010039,2]
[394688184,1763889031962,-1466.98314437,0.00010039,2]
[394688185,1763889031996,-308.09929999,0.00010039,2]
[394688186,1763889032009,-853.979999,0.00010039,2]
[394688187,1763889032020,-426.34100583,0.00010039,2]
[394688193,1763889037923,-500.0,0.00010038,2]
[394688194,1763889037932,-500.0,0.00010038,2]
[394688195,1763889037941,-500.0,0.00010038,2]
[394688196,1763889037951,-500.0,0.00010038,2]
[394688197,1763889037960,-500.0,0.00010038,2]
[394688198,1763889037969,-500.0,0.00010038,2]
[394688199,1763889037979,-500.0,0.00010038,2]
[394688200,1763889037987,-500.0,0.00010038,2]
[394688201,1763889037997,-500.0,0.00010038,2]
[394688202,1763889038006,-500.0,0.00010038,2]
[394688203,1763889038015,-160.00000001,0.00010038,2]
[394688204,1763889038024,-500.0,0.00010038,2]
[394688205,1763889038033,-500.00000009,0.00010038,2]
[394688206,1763889038043,-500.0,0.00010038,2]
[394688207,1763889038052,-433.30236237,0.00010038,2]
[394688208,1763889038061,-637.47179155,0.00010038,2]
[394688209,1763889038071,-18108.82544598,0.00010039,2]
[394688210,1763889038082,-889.62,0.00010039,2]
[394688211,1763889038093,-314.4785267,0.00010039,2]
[394688212,1763889038105,-8518.19901842,0.00010039,2]
[394688252,1763889040107,-5917.21586164,9.937e-05,2]
[394688254,1763889040116,-18158.43327488,0.00010039,2]
[394688256,1763889040125,-1035.0,0.00010039,2]
[394688258,1763889040135,-774.21113858,0.0001004,2]
[394688260,1763889040144,-501.8960163,0.00010061,2]
[394688262,1763889040152,-339.54095794,0.00010431,2]
[394688264,1763889040161,-300.0,0.00010893,2]
[394688266,1763889040171,-300.0,0.00010893,2]
[394688267,1763889040180,-300.0,0.00010893,2]
[394688270,1763889040190,-300.0,0.00010893,2]
[394688272,1763889040199,-300.0,0.00010893,2]
[394688273,1763889040208,-300.0,0.00010893,2]
[394688275,1763889040217,-300.0,0.00010893,2]
[394688277,1763889040228,-300.0,0.00010893,2]
[394688280,1763889040246,-300.0,0.00010893,2]
[394688282,1763889040255,-300.0,0.00010893,2]
[394688283,1763889040264,-300.0,0.00010893,2]
[394688285,1763889040274,-300.0,0.00010893,2]
[394688287,1763889040283,-300.0,0.00010893,2]
[394688289,1763889040292,-258.46005292,0.00010893,2]
[394688291,1763889040304,-41.53994708,0.00010893,2]
[394688293,1763889040313,-300.0,0.00010893,2]
[394688295,1763889040323,-999.0,0.00010959,2]
[394688297,1763889040331,-500.0,0.00010959,2]
[394688299,1763889040340,-500.0,0.00010959,2]
[394688301,1763889040350,-500.0,0.00010959,2]
[394688303,1763889040359,-500.0,0.00010959,2]
[394688305,1763889040369,-500.0,0.00010959,2]
[394688307,1763889040378,-500.0,0.00010959,2]
[394688308,1763889040387,-500.0,0.00010959,2]
[394688309,1763889040396,-500.0,0.00010959,2]
[394688310,1763889040405,-500.0,0.00010959,2]
[394688311,1763889040414,-465.46969067,0.00010959,2]
[394688312,1763889040424,-500.0,0.00010959,2]
[394688313,1763889040433,-500.0,0.00010959,2]
[394688314,1763889040442,-500.0,0.00010959,2]
[394688315,1763889040451,-505.63529271,0.00011,2]
[394688316,1763889040460,-420.0,0.00011041,2]
[394688317,1763889040470,-1200.0,0.00011041,2]
[394688318,1763889040479,-600.0,0.0001111,2]
[394688319,1763889040488,-655.24985698,0.00011548,2]
[394688320,1763889040497,-177.0,0.00011609,2]
[394688321,1763889040507,-42256.44678969,0.00012052,2]
[394688322,1763889040912,-70529.23829394,0.00012052,2]
[394688323,1763889040933,-4926.51814271,0.00012052,2]
[394688481,1763889044271,-568.44326117,0.00012052,2]
[394688513,1763889045010,-476.59,0.00012052,2]
[394688522,1763889046186,-1897.14749613,0.00012052,2]
[394688532,1763889101171,184.39,0.00019943,30]
[394688533,1763889307042,300.0,0.00011415,102]
[394688534,1763889308673,300.0,0.00011415,15]
[394688535,1763889310393,300.0,0.00011415,113]
[394688536,1763889312111,300.0,0.00011415,50]
[394688537,1763889313832,300.0,0.00011415,120]
[394688538,1763889315546,300.0,0.00011415,38]
[394688539,1763889317277,300.0,0.00011415,25]
[394688540,1763889319012,300.0,0.00011415,29]
[394688541,1763889321021,300.0,0.00011415,68]
[394688542,1763889322452,300.0,0.00011415,82]
[394688543,1763889324252,300.0,0.00011415,24]
[394688544,1763889325961,300.0,0.00011415,108]
[394688545,1763889327670,300.0,0.00011415,11]
[394688546,1763889329386,300.0,0.00011415,117]
[394688547,1763889331110,300.0,0.00011415,78]
[394688548,1763889332849,300.0,0.00011415,14]
[394688549,1763889334560,300.0,0.00011415,60]
[394688550,1763889336268,300.0,0.00011415,13]
[394688551,1763889338018,218.86,0.00011415,80]
[394688561,1763890017089,-150.0,9.121e-05,2]
[394688562,1763890017111,-18.19308826,9.167e-05,2]
[394688563,1763890019061,150.0,9.03e-05,2]
[394688591,1763890232155,-131.80691174,9.167e-05,2]
[394688592,1763890232166,-262.59,9.4e-05,2]
[394688594,1763890232175,-2111.0732371,9.4e-05,2]
[394688595,1763890232184,-187.78006525,0.00010025,2]
[394688597,1763890232193,-300.0,0.00010028,2]
[394688599,1763890232202,-300.0,0.00010028,2]
[394688600,1763890232212,-300.0,0.00010028,2]
[394688602,1763890232221,-1200.0,0.00010028,2]
[394688603,1763890232230,-1200.0,0.00010029,2]
[394688604,1763890232239,-5297.20743065,0.00010029,2]
[394688614,1763890238256,-9697.65108339,9.928e-05,2]
[394688615,1763890238266,-500.0,0.00010028,2]
[394688616,1763890238275,-500.0,0.00010028,2]
[394688617,1763890238285,-500.0,0.00010028,2]
[394688618,1763890238294,-500.0,0.00010028,2]
[394688619,1763890238303,-500.0,0.00010028,2]
[394688620,1763890238313,-500.0,0.00010028,2]
[394688621,1763890238322,-500.0,0.00010028,2]
[394688622,1763890238332,-500.0,0.00010028,2]
[394688623,1763890238342,-500.0,0.00010028,2]
[394688624,1763890238352,-500.0,0.00010028,2]
[394688625,1763890238361,-500.0,0.00010028,2]
[394688626,1763890238371,-500.0,0.00010028,2]
[394688627,1763890238381,-500.0,0.00010028,2]
[394688628,1763890238391,-500.0,0.00010028,2]
[394688629,1763890238401,-500.0,0.00010028,2]
[394688630,1763890238411,-500.0,0.00010028,2]
[394688631,1763890238422,-500.0,0.00010028,2]
[394688632,1763890238431,-197.65108339,0.00010028,2]
[394688633,1763890238441,-500.0,0.00010028,2]
[394688634,1763890238451,-500.0,0.00010028,2]
[394688635,1763890238460,-500.0,0.00010028,2]
[394688636,1763890238470,-500.0,0.00010028,2]
[394688637,1763890238480,-500.0,0.00010028,2]
[394688638,1763890238489,-500.0,0.00010028,2]
[394688639,1763890238499,-500.0,0.00010028,2]
[394688640,1763890238508,-500.0,0.00010028,2]
[394688641,1763890238517,-500.0,0.00010028,2]
[394688642,1763890238527,-500.0,0.00010028,2]
[394688643,1763890238536,-500.0,0.00010028,2]
[394688644,1763890238546,-500.0,0.00010028,2]
[394688645,1763890238555,-500.0,0.00010028,2]
[394688646,1763890238565,-500.0,0.00010028,2]
[394688647,1763890238574,-500.0,0.00010028,2]
[394688648,1763890238583,-500.0,0.00010028,2]
[394688649,1763890238593,-500.0,0.00010028,2]
[394688650,1763890238602,-500.0,0.00010028,2]
[394688651,1763890238612,-500.0,0.00010028,2]
[394688652,1763890238621,-500.0,0.00010028,2]
[394688653,1763890238631,-500.0,0.00010028,2]
[394688654,1763890238640,-500.0,0.00010028,2]
[394688655,1763890238650,-500.0,0.00010028,2]
[394688656,1763890238659,-500.0,0.00010028,2]
[394688657,1763890238668,-500.0,0.00010028,2]
[394688658,1763890238678,-500.0,0.00010028,2]
[394688659,1763890238687,-500.0,0.00010028,2]
[394688660,1763890238697,-500.0,0.00010028,2]
[394688661,1763890238706,-500.0,0.00010028,2]
[394688662,1763890238715,-500.0,0.00010028,2]
[394688663,1763890238913,-500.0,0.00010028,2]
[394688664,1763890238924,-500.0,0.00010028,2]
[394688665,1763890238934,-500.0,0.00010028,2]
[394688666,1763890238943,-500.0,0.00010028,2]
[394688667,1763890238953,-500.0,0.00010028,2]
[394688668,1763890238962,-500.0,0.00010028,2]
[394688669,1763890238971,-500.0,0.00010028,2]
[394688670,1763890238981,-500.0,0.00010028,2]
[394688671,1763890238990,-500.0,0.00010028,2]
[394688672,1763890239005,-500.0,0.00010028,2]
[394688673,1763890239015,-500.0,0.00010028,2]
[394688674,1763890239025,-500.0,0.00010028,2]
[394688675,1763890239035,-183.20411936,0.00010028,2]
[394688676,1763890239044,-607.61228077,0.00010028,2]
[394688677,1763890239054,-500.0,0.00010028,2]
[394688678,1763890239063,-296.23025408,0.00010028,2]
[394688679,1763890239075,-44702.79256935,0.00010029,2]
[394688680,1763890239084,-793.0,0.00010033,2]
[394688681,1763890239094,-1240.0,0.00010033,2]
[394688682,1763890239104,-151.0,0.00010033,2]
[394688683,1763890239113,-500.0,0.00010033,2]
[394688684,1763890239123,-500.0,0.00010033,2]
[394688685,1763890239132,-500.0,0.00010033,2]
[394688686,1763890239141,-500.0,0.00010033,2]
[394688687,1763890239151,-500.0,0.00010033,2]
[394688688,1763890239160,-500.0,0.00010035,2]
[394688689,1763890239169,-500.0,0.00010035,2]
[394688690,1763890239179,-151.0,0.00010035,2]
[394688691,1763890239189,-500.0,0.00010035,2]
[394688692,1763890239199,-401.637244,0.00010061,2]
[394688693,1763890239208,-793.0,0.0001017,2]
[394688694,1763890239219,-1240.0,0.0001017,2]
[394688695,1763890239228,-151.0,0.0001017,2]
[394688696,1763890239237,-500.0,0.0001017,2]
[394688697,1763890239247,-500.0,0.0001017,2]
[394688698,1763890239256,-500.0,0.0001017,2]
[394688699,1763890239266,-500.0,0.0001017,2]
[394688700,1763890239275,-500.0,0.0001017,2]
[394688701,1763890239285,-500.0,0.00010172,2]
[394688702,1763890239294,-500.0,0.00010172,2]
[394688703,1763890239303,-151.0,0.00010172,2]
[394688704,1763890239312,-47.27192768,0.00010237,2]
[394688756,1763890240375,-252.72807232,0.00010237,2]
[394688758,1763890240384,-300.0,0.00010237,2]
[394688760,1763890240394,-300.0,0.00010237,2]
[394688762,1763890240403,-300.0,0.00010237,2]
[394688764,1763890240413,-300.0,0.00010237,2]
[394688766,1763890240422,-300.0,0.00010237,2]
[394688768,1763890240432,-300.0,0.00010237,2]
[394688770,1763890240441,-300.0,0.00010237,2]
[394688772,1763890240451,-300.0,0.00010237,2]
[394688774,1763890240461,-300.0,0.00010237,2]
[394688776,1763890240470,-300.0,0.00010237,2]
[394688777,1763890240479,-300.0,0.00010237,2]
[394688778,1763890240488,-300.0,0.00010237,2]
[394688780,1763890240498,-300.0,0.00010237,2]
[394688782,1763890240507,-300.0,0.00010237,2]
[394688783,1763890240516,-600.0,0.00010237,2]
[394688784,1763890240525,-793.0,0.00010307,2]
[394688785,1763890240535,-1240.0,0.00010307,2]
[394688786,1763890240544,-151.0,0.00010307,2]
[394688787,1763890240553,-500.0,0.00010307,2]
[394688788,1763890240562,-500.0,0.00010307,2]
[394688789,1763890240571,-382.88618428,0.00010307,2]
[394688790,1763890240581,-500.0,0.00010307,2]
[394688791,1763890240590,-500.0,0.00010307,2]
[394688792,1763890240599,-500.0,0.00010309,2]
[394688793,1763890240609,-500.0,0.00010309,2]
[394688794,1763890240619,-151.0,0.00010309,2]
[394688795,1763890240628,-322.1880425,0.00010309,2]
[394688797,1763890240638,-500.0,0.0001031,2]
[394688799,1763890240647,-500.0,0.0001031,2]
[394688800,1763890240657,-793.0,0.00010444,2]
[394688801,1763890240666,-1240.0,0.00010444,2]
[394688802,1763890240675,-151.0,0.00010444,2]
[394688803,1763890240685,-500.0,0.00010444,2]
[394688804,1763890240693,-500.0,0.00010444,2]
[394688805,1763890240703,-249.34680134,0.00010444,2]
[394688806,1763890240713,-486.56514957,0.00010444,2]
[394688807,1763890240722,-487.01448599,0.00010446,2]
[394688809,1763890240731,-500.0,0.00010446,2]
[394688810,1763890240741,-151.0,0.00010446,2]
[394688811,1763890240750,-500.0,0.00010447,2]
[394688812,1763890240759,-500.0,0.00010447,2]
[394688813,1763890240769,-194.72792766,0.00010573,2]
[394688814,1763890240780,-793.0,0.00010581,2]
[394688815,1763890240789,-1240.0,0.00010581,2]
[394688816,1763890240798,-188.13031208,0.00010581,2]
[394688817,1763890240807,-500.0,0.00010581,2]
[394688818,1763890240816,-500.0,0.00010581,2]
[394688819,1763890240826,-500.0,0.00010583,2]
[394688820,1763890240835,-299.33685092,0.00010583,2]
[394688821,1763890240844,-500.0,0.00010584,2]
[394688822,1763890240853,-500.0,0.00010584,2]
[394688823,1763890240862,-793.0,0.00010718,2]
[394688824,1763890240873,-1240.0,0.00010718,2]
[394688825,1763890240882,-500.0,0.00010718,2]
[394688826,1763890240891,-500.0,0.00010718,2]
[394688827,1763890240901,-500.0,0.0001072,2]
[394688828,1763890240910,-500.0,0.00010721,2]
[394688829,1763890240919,-493.38611671,0.00010721,2]
[394688830,1763890240928,-524.3571141,0.0001081,2]
[394688831,1763890240937,-793.0,0.00010855,2]
[394688832,1763890240946,-1240.0,0.00010855,2]
[394688833,1763890240955,-500.0,0.00010855,2]
[394688834,1763890240965,-500.0,0.00010855,2]
[394688835,1763890240974,-500.0,0.00010857,2]
[394688836,1763890240983,-500.0,0.00010858,2]
[394688837,1763890240992,-500.0,0.00010874,2]
[394688838,1763890241006,-500.0,0.00010874,2]
[394688839,1763890241016,-500.0,0.00010874,2]
[394688840,1763890241025,-250.0,0.00010874,2]
[394688841,1763890241035,-500.0,0.00010874,2]
[394688842,1763890241046,-250.0,0.00010874,2]
[394688843,1763890241055,-500.0,0.00010874,2]
[394688844,1763890241063,-250.0,0.00010874,2]
[394688845,1763890241075,-500.0,0.00010874,2]
[394688846,1763890241084,-250.0,0.00010874,2]
[394688847,1763890241093,-500.0,0.00010874,2]
[394688848,1763890241102,-250.0,0.00010874,2]
[394688849,1763890241111,-250.0,0.00010874,2]
[394688850,1763890241120,-250.0,0.00010874,2]
[394688851,1763890241130,-258.72271019,0.00010874,2]
[394688852,1763890241139,-153.528653,0.00010958,4]
[394688853,1763890241147,-999.0,0.00010959,2]
[394688854,1763890241156,-500.0,0.00010959,2]
[394688855,1763890241166,-500.0,0.00010959,2]
[394688856,1763890241175,-500.0,0.00010959,2]
[394688857,1763890241184,-500.0,0.00010959,2]
[394688858,1763890241193,-500.0,0.00010959,2]
[394688859,1763890241203,-500.0,0.00010959,2]
[394688860,1763890241213,-500.0,0.00010959,2]
[394688861,1763890241223,-500.0,0.00010959,2]
[394688862,1763890241232,-500.0,0.00010959,2]
[394688863,1763890241242,-500.0,0.00010959,2]
[394688864,1763890241251,-525.82878347,0.00010959,2]
[394688865,1763890241261,-793.0,0.00010992,2]
[394688866,1763890241271,-1240.0,0.00010992,2]
[394688867,1763890241280,-500.0,0.00010992,2]
[394688868,1763890241291,-500.0,0.00010992,2]
[394688869,1763890241300,-500.0,0.00010994,2]
[394688870,1763890241311,-500.0,0.00010995,2]
[394688871,1763890241321,-500.0,0.00011,2]
[394688872,1763890241331,-420.0,0.00011031,2]
[394688873,1763890241341,-1089.0,0.00011031,2]
[394688874,1763890241351,-201.93286099,0.00011121,2]
[394688875,1763890241361,-793.0,0.00011129,2]
[394688876,1763890241370,-1240.0,0.00011129,2]
[394688877,1763890241379,-500.0,0.00011129,2]
[394688878,1763890241390,-500.0,0.00011129,2]
[394688879,1763890241400,-240.0,0.00011131,2]
[394688880,1763890241409,-500.0,0.00011132,2]
[394688881,1763890241420,-177.0,0.00011167,2]
[394688882,1763890241431,-720.0,0.00011261,2]
[394688883,1763890241440,-793.0,0.00011266,2]
[394688884,1763890241450,-1240.0,0.00011266,2]
[394688885,1763890241460,-500.0,0.00011266,2]
[394688886,1763890241469,-500.0,0.00011266,2]
[394688887,1763890241479,-500.0,0.00011269,2]
[394688888,1763890241489,-793.0,0.00011403,2]
[394688889,1763890241499,-1240.0,0.00011403,2]
[394688890,1763890241508,-500.0,0.00011403,2]
[394688891,1763890241517,-500.0,0.00011403,2]
[394688892,1763890241527,-500.0,0.00011406,2]
[394688893,1763890241536,-3046.8434655,0.00011536,2]
[394688894,1763890241546,-734.7830878,0.00011536,2]
[394688895,1763890241555,-162.6194832,0.00011536,2]
[394688896,1763890241564,-793.0,0.0001154,2]
[394688897,1763890241573,-1240.0,0.0001154,2]
[394688898,1763890241583,-500.0,0.0001154,2]
[394688899,1763890241592,-500.0,0.0001154,2]
[394688900,1763890241602,-321.06773699,0.00011543,2]
[394688901,1763890241611,-2135.46837879,0.00011561,2]
[394688902,1763890241620,-2959.31633638,0.00011609,2]
[394688903,1763890241629,-3150.8737233,0.00011615,2]
[394688904,1763890241639,-524.3571141,0.00011669,2]
[394688905,1763890241648,-209.40437684,0.00011669,2]
[394688906,1763890241657,-793.0,0.00011677,2]
[394688907,1763890241666,-1240.0,0.00011677,2]
[394688908,1763890241675,-500.0,0.00011677,2]
[394688909,1763890241684,-500.0,0.00011677,2]
[394688910,1763890241694,-793.0,0.00011814,2]
[394688911,1763890241705,-1240.0,0.00011814,2]
[394688912,1763890241714,-500.0,0.00011814,2]
[394688913,1763890241723,-500.0,0.00011814,2]
[394688914,1763890241732,-157927.2073978,0.00011831,2]
[394688925,1763890246530,-318.19308826,0.00010749,2]
[394688926,1763890246539,-20926.45933574,0.00011831,2]
[394688933,1763890503148,1389.63512518,8e-05,2]
[394688994,1763891433352,-223.02823501,9.156e-05,2]
[394688995,1763891433363,-223.02823501,9.248e-05,2]
[394688996,1763891433372,-223.02823501,9.341e-05,2]
[394688997,1763891433381,-150.0,9.489e-05,2]
[394688998,1763891433391,-570.55042015,0.00010019,2]
[394688999,1763891433405,-629.44957985,0.00010019,2]
[394689000,1763891433415,-300.0,0.00010019,2]
[394689001,1763891433425,-425.32859654,0.00010019,2]
[394689002,1763891433434,-557.36117786,0.00010019,2]
[394689003,1763891433444,-50000.0,0.0001002,2]
[394689004,1763891433453,-321.40616887,0.00010061,2]
[394689005,1763891433463,-200.2002335,0.00010061,2]
[394689006,1763891433472,-300.0,0.00010228,2]
[394689007,1763891433481,-300.0,0.00010228,2]
[394689008,1763891433490,-300.0,0.00010228,2]
[394689009,1763891433500,-300.0,0.00010228,2]
[394689010,1763891433509,-300.0,0.00010228,2]
[394689011,1763891433519,-300.0,0.00010228,2]
[394689012,1763891433530,-300.0,0.00010228,2]
[394689013,1763891433539,-300.0,0.00010228,2]
[394689014,1763891433549,-300.0,0.00010228,2]
[394689015,1763891433559,-300.0,0.00010228,2]
[394689016,1763891433569,-300.0,0.00010228,2]
[394689017,1763891433578,-300.0,0.00010228,2]
[394689018,1763891433588,-300.0,0.00010228,2]
[394689019,1763891433598,-300.0,0.00010228,2]
[394689020,1763891433608,-300.0,0.00010228,2]
[394689021,1763891433619,-600.0,0.00010228,2]
[394689022,1763891433629,-500.0,0.00010959,2]
[394689023,1763891433640,-500.0,0.00010959,2]
[394689024,1763891433650,-500.0,0.00010959,2]
[394689025,1763891433661,-500.0,0.00010959,2]
[394689026,1763891433671,-500.0,0.00010959,2]
[394689027,1763891433681,-275.10444396,0.00010959,2]
[394689028,1763891433691,-500.0,0.00010959,2]
[394689029,1763891433700,-500.0,0.00010959,2]
[394689030,1763891433709,-500.0,0.00010959,2]
[394689031,1763891433719,-500.0,0.00010959,2]
[394689032,1763891433728,-500.0,0.00010959,2]
[394689033,1763891433738,-420.0,0.00011021,2]
[394689034,1763891433748,-720.0,0.00011251,2]
[394689035,1763891433757,-177.0,0.00011489,2]
[394689036,1763891433766,-314.86590955,0.00011529,2]
[394689037,1763891433775,-250.0,0.00011606,2]
[394689038,1763891433784,-250.0,0.00011606,2]
[394689039,1763891433792,-250.0,0.00011606,2]
[394689040,1763891433801,-187.78006525,0.00011606,2]
[394689041,1763891433810,-250.0,0.00011606,2]
[394689042,1763891433820,-250.0,0.00011606,2]
[394689043,1763891433829,-250.0,0.00011606,2]
[394689044,1763891433838,-250.0,0.00011606,2]
[394689045,1763891433847,-254.98180644,0.00011606,2]
[394689046,1763891433855,-535875.85979911,0.00011613,2]
[394689152,1763891444772,-4690.08098511,9.918e-05,2]
[394689153,1763891445562,-351.95552783,9.918e-05,2]
[394689154,1763891445573,-351.14,9.918e-05,2]
[394689166,1763891446669,-9974.88124151,9.918e-05,2]
[394689167,1763891446679,-2315.7194,0.0001,2]
[394689168,1763891446689,-500.0,0.00010018,2]
[394689169,1763891446698,-500.0,0.00010018,2]
[394689170,1763891446708,-500.0,0.00010018,2]
[394689171,1763891446716,-500.0,0.00010018,2]
[394689172,1763891446726,-500.0,0.00010018,2]
[394689173,1763891446735,-500.0,0.00010018,2]
[394689174,1763891446743,-500.0,0.00010018,2]